fUST/lending_fUST_20251019
["ID","MTS","AMOUNT","RATE_DAILY","PERIOD"]
[391781296,1760803838224,-600.0,0.000384,2]
[391781297,1760803838233,-53524.83129025,0.00038511,4]
[391781298,1760803838246,-4788.59,0.00038666,120]
[391781299,1760803838257,-896.45707677,0.00038682,7]
[391781300,1760803838267,-180.12205099,0.00038795,7]
[391781301,1760803838276,-1692.75,0.000388,2]
[391781302,1760803838286,-600.0,0.000388,2]
[391781303,1760803838296,-800.0,0.00038895,7]
[391781304,1760803838306,-18561.04,0.000389,14]
[391781305,1760803838316,-1100.0,0.00038904,7]
[391781306,1760803838326,-800.0,0.00038949,7]
[391781307,1760803838335,-800.0,0.00038987,7]
[391781308,1760803838345,-12993.3472944,0.0003899,3]
[391781309,1760803838354,-1749.82622474,0.0003899,3]
[391781310,1760803838364,-312.65866,0.00039,120]
[391781311,1760803838374,-54859.5,0.00039,90]
[391781312,1760803838384,-151.0,0.00039,120]
[391781313,1760803838394,-151.0,0.00039,120]
[391781314,1760803838404,-151.0,0.00039,120]
[391781315,1760803838415,-151.0,0.00039,120]
[391781316,1760803838424,-756.6179126,0.00039041,30]
[391781317,1760803838434,-849.65503258,0.00039061,7]
[391781318,1760803838443,-960.62271974,0.0003907,30]
[391781319,1760803838453,-421.14647088,0.00039116,7]
[391781320,1760803838463,-800.0,0.00039132,7]
[391781321,1760803838473,-12993.3472944,0.00039208,3]
[391781322,1760803838483,-1749.82622474,0.00039208,3]
[391781323,1760803838493,-800.0,0.00039218,7]
[391781324,1760803838502,-151.0,0.000393,14]
[391781325,1760803838512,-800.0,0.00039301,7]
[391781326,1760803838521,-800.0,0.00039341,7]
[391781327,1760803838531,-151.0,0.00039363,120]
[391781328,1760803838540,-151.0,0.00039363,120]
[391781329,1760803838550,-301.648661,0.00039363,120]
[391781330,1760803838560,-800.0,0.0003938,7]
[391781331,1760803838570,-800.0,0.00039389,7]
[391781332,1760803838579,-157.252713,0.0003939,2]
[391781333,1760803838588,-155.022087,0.0003939,2]
[391781334,1760803838599,-154.549134,0.0003939,2]
[391781335,1760803838609,-1000.0,0.00039424,90]
[391781336,1760803838619,-492.0,0.00039424,90]
[391781337,1760803838629,-772.25570428,0.00039471,2]
[391781338,1760803838639,-800.0,0.00039473,7]
[391781339,1760803838649,-151.0,0.00039473,120]
[391781340,1760803838659,-3499.65244948,0.0003949,3]
[391781341,1760803838669,-74984.0,0.000395,30]
[391781342,1760803838679,-151.0,0.000395,7]
[391781343,1760803838689,-151.0,0.000395,120]
[391781344,1760803838698,-151.0,0.000395,120]
[391781345,1760803838708,-151.0,0.000395,120]
[391781346,1760803838718,-151.0,0.000395,120]
[391781347,1760803838728,-175.29422194,0.000395,120]
[391781348,1760803838739,-151.0,0.000395,120]
[391781349,1760803838750,-1749.82622474,0.00039521,3]
[391781350,1760803838760,-35411.4197894,0.00039531,2]
[391781351,1760803838770,-1255.3570028,0.00039531,2]
[391781352,1760803838779,-10300.9885668,0.00039531,2]
[391781353,1760803838791,-666.2180417,0.00039531,2]
[391781354,1760803838803,-9887.7052583,0.00039531,2]
[391781355,1760803838813,-800.0,0.00039567,7]
[391781356,1760803838823,-800.0,0.00039617,7]
[391781357,1760803838834,-4788.59,0.00039625,120]
[391781358,1760803838843,-800.0,0.00039641,7]
[391781359,1760803838853,-458.75636,0.00039654,2]
[391781360,1760803838865,-800.0,0.00039663,7]
[391781361,1760803838877,-2258.0,0.00039696,5]
[391781362,1760803838888,-1577.76,0.000397,24]
[391781363,1760803838899,-1000.0,0.00039712,8]
[391781364,1760803838910,-1100.0,0.00039726,7]
[391781365,1760803838921,-800.0,0.00039741,7]
[391781366,1760803838931,-341.27,0.00039761,2]
[391781367,1760803838941,-4616.91,0.000398,14]
[391781368,1760803838951,-1000.0,0.000398,2]
[391781369,1760803838962,-1000.0,0.000398,2]
[391781370,1760803838973,-1000.0,0.000398,2]
[391781371,1760803838984,-1000.0,0.000398,2]
[391781372,1760803838995,-1000.0,0.000398,2]
[391781373,1760803839006,-1000.0,0.000398,2]
[391781374,1760803839017,-1000.0,0.000398,2]
[391781375,1760803839027,-1000.0,0.000398,2]
[391781376,1760803839037,-1000.0,0.000398,2]
[391781377,1760803839047,-1000.0,0.000398,2]
[391781378,1760803839057,-317.7314,0.000398,2]
[391781379,1760803839067,-151.0,0.000398,120]
[391781380,1760803839077,-151.0,0.000398,120]
[391781381,1760803839088,-151.0,0.000398,120]
[391781382,1760803839098,-264.826648,0.000398,120]
[391781383,1760803839108,-196.0,0.0003982,52]
[391781384,1760803839119,-221.23451577,0.0003986,6]
[391781385,1760803839129,-500.0,0.00039873,5]
[391781386,1760803839138,-20000.0,0.000399,30]
[391781387,1760803839149,-151.0,0.000399,120]
[391781388,1760803839159,-8273.00685909,0.000399,2]
[391781389,1760803839170,-10700.11252974,0.000399,2]
[391781390,1760803839181,-712.3127001,0.00039951,2]
[391781391,1760803839190,-220.0,0.00039973,5]
[391781392,1760803839200,-823.77908852,0.00039999,7]
[391781393,1760803839209,-854.2589148,0.00039999,7]
[391781394,1760803839219,-885.86649465,0.00039999,7]
[391781395,1760803839228,-918.64355495,0.00039999,7]
[391781396,1760803839238,-952.63336648,0.00039999,7]
[391781397,1760803839247,-987.88080104,0.00039999,7]
[391781398,1760803839257,-1024.43239068,0.00039999,7]
[391781399,1760803839267,-1062.33638913,0.00039999,7]
[391781400,1760803839276,-1101.64283553,0.00039999,7]
[391781401,1760803839285,-1142.40362045,0.00039999,7]
[391781402,1760803839295,-1184.6725544,0.00039999,7]
[391781403,1760803839305,-1228.50543892,0.00039999,7]
[391781404,1760803839314,-713747.64617846,0.0004,7]
[391781405,1760803839324,-222101.05381259,0.0004,7]
[391781406,1760803839334,-143804.31539366,0.0004,7]
[391781407,1760803839343,-447154.47868006,0.0004,7]
[391781408,1760803839413,-539.95009881,0.0004,7]
[391781409,1760803839425,-27618.28644943,0.0004,7]
[391781425,1760803840005,-260.98412504,0.0004,7]
[391781426,1760803840017,-4327.21647842,0.0004,7]
[391781428,1760803840259,-3e-08,0.0004,7]
[391781450,1760803842929,-411.0,0.00032608,2]
[391781451,1760803842939,-423.986,0.00032608,2]
[391781452,1760803842949,-285.664,0.00035608,2]
[391781453,1760803842958,-411.0,0.00035608,2]
[391781454,1760803842967,-411.0,0.00038608,2]
[391781455,1760803842976,-21003.53874736,0.0004,7]
[391781456,1760803842988,-274.77605345,0.0004,7]
[391781471,1760803980536,168.46,0.0002311,2]
[391781472,1760804060661,166.32,0.00019939,2]
[391781473,1760804061072,332.64,0.00021752,2]
[391781474,1760804061528,498.96,0.00023564,2]
[391781475,1760804139748,153.62,0.00020331,2]
[391781476,1760804140196,307.24,0.0002218,2]
[391781477,1760804140615,460.85,0.00024028,2]
[391781478,1760804171468,168.0828384,0.00012192,2]
[391781487,1760804199286,302.45563732,0.000189,2]
[391781488,1760804199312,369.40278989,0.00019845,4]
[391781489,1760804199340,302.45563732,0.00019089,2]
[391781490,1760804199407,302.45563732,0.00019278,2]
[391781491,1760804199456,302.45563732,0.00019467,2]
[391781492,1760804199504,302.45563732,0.00019656,2]
[391781493,1760804210529,500.0,0.00028009,120]
[391781494,1760804220664,150.0,0.00020082,2]
[391781495,1760804221176,283.77,0.00021908,2]
[391781496,1760804221613,425.66,0.00023733,2]
[391781501,1760804296065,154.0,0.00024,120]
[391781502,1760804297480,154.0,0.000284,120]
[391781503,1760804301252,150.0,0.0002041,2]
[391781504,1760804301694,261.9,0.00022265,2]
[391781505,1760804302154,392.85,0.00024121,2]
[391781506,1760804339003,500.0,0.00033971,120]
[391781507,1760804339195,500.0,0.00033971,120]
[391781508,1760804339450,566.22151749,0.00033971,120]
[391781509,1760804380917,150.0,0.00020163,2]
[391781510,1760804381345,241.41,0.00021996,2]
[391781511,1760804381756,362.12,0.0002383,2]
[391781512,1760804460432,150.0,0.00020184,2]
[391781513,1760804460906,222.23,0.00022019,2]
[391781514,1760804461347,333.35,0.00023854,2]
[391781515,1760804539816,150.0,0.00020778,2]
[391781516,1760804540182,204.27,0.00022667,2]
[391781517,1760804620273,150.0,0.00020648,2]
[391781518,1760804620703,195.26,0.00022525,2]
[391781519,1760804699779,150.0,0.00020651,2]
[391781520,1760804700267,186.47,0.00022529,2]
[391781523,1760804776935,150.0,0.00020651,2]
[391781524,1760804777365,177.9,0.00022528,2]
[391781527,1760804830687,417.15472785,0.00024142,2]
[391781528,1760804855093,150.0,0.00020191,2]
[391781529,1760804855580,169.56,0.00022027,2]
[391781530,1760804855995,254.33,0.00023863,2]
[391781536,1760804914718,215.57865191,0.00015,2]
[391781538,1760804914740,4907.50789809,0.00015,2]
[391781543,1760804929181,-3775.06569038,0.00024142,2]
[391781544,1760804931242,150.0,0.00020419,2]
[391781545,1760804931661,154.95,0.00022275,2]
[391781546,1760804932186,232.42,0.00024131,2]
[391781547,1760805009339,150.0,0.0002021,2]
[391781548,1760805009773,150.0,0.00022047,2]
[391781549,1760805010188,211.9,0.00023884,2]
[391781585,1760805032002,-150.0,0.00024402,2]
[391781587,1760805032012,-200.0,0.00024402,2]
[391781589,1760805032022,-300.0,0.00024656,2]
[391781591,1760805032032,-561.16855491,0.00024657,2]
[391781594,1760805032054,-4306.77561214,0.00024657,2]
[391781596,1760805032065,-610.14167603,0.00024657,2]
[391781598,1760805032075,-500.0,0.00024657,2]
[391781600,1760805032085,-161.93777355,0.00024657,2]
[391781602,1760805032095,-500.0,0.00024657,2]
[391781604,1760805032105,-500.0,0.00024657,2]
[391781606,1760805032115,-500.0,0.00024657,2]
[391781608,1760805032124,-500.0,0.00024657,2]
[391781610,1760805032134,-500.0,0.00024657,2]
[391781612,1760805032143,-500.0,0.00024657,2]
[391781615,1760805032154,-500.0,0.00024657,2]
[391781616,1760805032164,-500.0,0.00024657,2]
[391781618,1760805032173,-500.0,0.00024657,2]
[391781620,1760805032183,-500.0,0.00024657,2]
[391781621,1760805032193,-407.60638032,0.00024657,2]
[391781622,1760805032202,-312.25776134,0.00024657,2]
[391781623,1760805032212,-500.0,0.00024657,2]
[391781624,1760805032226,-500.0,0.00024657,2]
[391781625,1760805032235,-500.0,0.00024657,2]
[391781626,1760805032245,-249.49687728,0.00024657,2]
[391781627,1760805032255,-603.81643693,0.00024657,2]
[391781628,1760805032265,-500.0,0.00024657,2]
[391781629,1760805032275,-501.7656319,0.00024657,2]
[391781630,1760805032286,-1250.0,0.00024657,2]
[391781631,1760805032296,-1250.0,0.00024657,2]
[391781632,1760805032306,-1250.0,0.00024657,2]
[391781633,1760805032316,-1250.0,0.00024657,2]
[391781634,1760805032325,-1250.0,0.00024657,2]
[391781635,1760805032335,-1250.0,0.00024657,2]
[391781636,1760805032344,-1250.0,0.00024657,2]
[391781637,1760805032354,-1250.0,0.00024657,2]
[391781638,1760805032363,-1250.0,0.00024657,2]
[391781640,1760805032374,-1250.0,0.00024657,2]
[391781642,1760805032383,-1250.0,0.00024657,2]
[391781644,1760805032393,-1250.0,0.00024657,2]
[391781646,1760805032403,-1250.0,0.00024657,2]
[391781648,1760805032413,-1250.0,0.00024657,2]
[391781650,1760805032422,-1250.0,0.00024657,2]
[391781666,1760805032566,-1250.0,0.00024657,2]
[391781669,1760805032578,-1250.0,0.00024657,2]
[391781671,1760805032587,-1250.0,0.00024657,2]
[391781673,1760805032597,-1250.0,0.00024657,2]
[391781675,1760805032606,-1250.0,0.00024657,2]
[391781677,1760805032616,-1250.0,0.00024657,2]
[391781679,1760805032625,-1250.0,0.00024657,2]
[391781681,1760805032634,-1250.0,0.00024657,2]
[391781683,1760805032643,-1250.03,0.00024657,2]
[391781685,1760805032653,-500.0,0.00024658,2]
[391781687,1760805032662,-500.0,0.00024658,2]
[391781689,1760805032672,-500.0,0.00024658,2]
[391781691,1760805032682,-500.0,0.00024658,2]
[391781693,1760805032691,-500.0,0.00024658,2]
[391781695,1760805032701,-500.0,0.00024658,2]
[391781697,1760805032711,-500.0,0.00024658,2]
[391781699,1760805032720,-500.0,0.00024658,2]
[391781701,1760805032729,-500.0,0.00024658,2]
[391781703,1760805032738,-500.0,0.00024658,2]
[391781705,1760805032748,-500.0,0.00024658,2]
[391781707,1760805032757,-500.0,0.00024658,2]
[391781709,1760805032767,-500.0,0.00024658,2]
[391781711,1760805032777,-500.0,0.00024658,2]
[391781713,1760805032786,-500.0,0.00024658,2]
[391781715,1760805032795,-500.0,0.00024658,2]
[391781717,1760805032804,-500.0,0.00024658,2]
[391781720,1760805032814,-556.61555579,0.00024658,2]
[391781721,1760805032824,-500.0,0.00024658,2]
[391781723,1760805032833,-500.0,0.00024658,2]
[391781725,1760805032842,-500.0,0.00024658,2]
[391781728,1760805032853,-500.0,0.00024658,2]
[391781730,1760805032862,-500.0,0.00024658,2]
[391781732,1760805032872,-500.0,0.00024658,2]
[391781734,1760805032882,-500.0,0.00024658,2]
[391781735,1760805032892,-500.0,0.00024658,2]
[391781738,1760805032902,-387.74482213,0.00024764,2]
[391781740,1760805032914,-112.25517787,0.00024764,2]
[391781742,1760805032924,-556.0025385,0.00024866,2]
[391781744,1760805032934,-300.0,0.00024966,20]
[391781746,1760805032943,-300.0,0.00024966,20]
[391781748,1760805032952,-300.0,0.00024966,20]
[391781750,1760805032963,-300.0,0.00024966,20]
[391781752,1760805032972,-300.0,0.00024966,20]
[391781754,1760805032981,-300.0,0.00024966,20]
[391781756,1760805032990,-300.0,0.00024966,20]
[391781758,1760805033000,-300.0,0.00024966,20]
[391781760,1760805033010,-300.0,0.00024966,20]
[391781762,1760805033019,-300.0,0.00024966,20]
[391781764,1760805033028,-300.0,0.00024966,20]
[391781766,1760805033039,-300.0,0.00024966,20]
[391781768,1760805033049,-300.0,0.00024966,20]
[391781770,1760805033059,-300.0,0.00024966,20]
[391781772,1760805033069,-300.0,0.00024966,20]
[391781773,1760805033079,-600.0,0.00024966,20]
[391781775,1760805033090,-172.5,0.00025002,2]
[391781777,1760805033100,-199.0,0.00025205,7]
[391781779,1760805033110,-199.0,0.00025479,8]
[391781781,1760805033119,-195.0,0.00025602,2]
[391781783,1760805033128,-282.54,0.00025721,2]
[391781785,1760805033138,-199.0,0.00025753,9]
[391781786,1760805033147,-199.0,0.00026027,10]
[391781788,1760805033157,-217.5,0.00026202,2]
[391781790,1760805033167,-420.0,0.0002672,2]
[391781792,1760805033179,-198.59355871,0.00026802,2]
[391781795,1760805033188,-720.0,0.00027463,30]
[391781796,1760805033198,-194.79975766,0.000275,2]
[391781798,1760805033207,-956.57669548,0.000275,2]
[391781800,1760805033216,-556.00253848,0.00027506,2]
[391781802,1760805033232,-353.17,0.00027558,2]
[391781804,1760805033241,-402.78104431,0.0002756,2]
[391781806,1760805033250,-956.57669548,0.000277,2]
[391781808,1760805033264,-194.79975766,0.000278,2]
[391781810,1760805033274,-179.031,0.00027851,17]
[391781812,1760805033283,-956.57669548,0.00028,2]
[391781814,1760805033293,-956.57669548,0.000283,2]
[391781816,1760805033305,-500.0,0.00028473,5]
[391781818,1760805033314,-496.34318608,0.00028473,5]
[391781820,1760805033323,-4329.20229692,0.000285,7]
[391781976,1760805037775,-3776.28806406,0.000285,7]
[391781978,1760805037787,-137135.97202878,0.000285,7]
[391781980,1760805037796,-1252.09,0.000285,2]
[391781981,1760805037805,-202.13623753,0.00028566,2]
[391781982,1760805037816,-956.57669548,0.000286,2]
[391781983,1760805037827,-155.675625,0.00028666,20]
[391781984,1760805037837,-988.62886887,0.0002876,2]
[391781985,1760805037847,-4000.0,0.0002876,5]
[391781986,1760805037857,-250.22816709,0.0002876,2]
[391781987,1760805037866,-2317.52641926,0.0002876,2]
[391781988,1760805037875,-169.77033443,0.000288,7]
[391781989,1760805037885,-587.0,0.00028957,2]
[391781990,1760805037895,-881.66337224,0.00029,2]
[391781991,1760805037906,-502.25841114,0.00029,7]
[391781992,1760805037916,-18354.21,0.00029,7]
[391781993,1760805037925,-1000.0,0.00029021,5]
[391781994,1760805037935,-1123.83451113,0.00029042,120]
[391781995,1760805037946,-423.81,0.00029396,2]
[391781996,1760805037955,-187.01117833,0.000295,120]
[391781997,1760805037965,-155.675625,0.00029549,20]
[391781998,1760805037974,-71108.05283662,0.0002956,2]
[391781999,1760805037983,-1500.0,0.00029568,5]
[391782000,1760805037993,-332.78440282,0.00029658,4]
[391782001,1760805038002,-202.13623752,0.0002989,2]
[391782002,1760805038012,-1000.0,0.0003,2]
[391782003,1760805038022,-7290.11507159,0.0003,2]
[391782004,1760805038032,-27023.2777824,0.0003,15]
[391782005,1760805038041,-301.64994618,0.0003,120]
[391782006,1760805038052,-183.1820543,0.0003,120]
[391782007,1760805038062,-3419.15655011,0.0003,2]
[391782008,1760805038072,-525.47524385,0.0003,2]
[391782009,1760805038081,-785.81490251,0.0003,60]
[391782010,1760805038091,-200.23333222,0.0003,2]
[391782011,1760805038101,-5930.57785028,0.0003,2]
[391782012,1760805038111,-150.0,0.00030073,5]
[391782013,1760805038120,-150.0,0.00030073,5]
[391782014,1760805038130,-112828.20400821,0.000301,3]
[391782015,1760805038139,-2000.0,0.00030116,5]
[391782016,1760805038148,-353.15870472,0.0003012,7]
[391782017,1760805038158,-285.48736586,0.0003013,2]
[391782018,1760805038167,-1080.952947,0.00030137,120]
[391782019,1760805038176,-556.00253848,0.00030145,2]
[391782020,1760805038189,-271.88742116,0.0003015,120]
[391782021,1760805038199,-864.0,0.00030209,30]
[391782022,1760805038209,-670.4140214,0.0003022,2]
[391782023,1760805038224,-155.675625,0.00030432,20]
[391782024,1760805038236,-154.91587,0.00030432,20]
[391782025,1760805038245,-200.0,0.000305,120]
[391782026,1760805038255,-152.13637244,0.00030621,5]
[391782027,1760805038264,-250.0,0.00030621,5]
[391782028,1760805038274,-186.75000372,0.00030664,5]
[391782029,1760805038284,-303.49061817,0.0003099,2]
[391782030,1760805038293,-1224.64,0.00031,2]
[391782031,1760805038303,-1252.09,0.00031,2]
[391782032,1760805038312,-11030.26253319,0.0003112,2]
[391782033,1760805038322,-350.0,0.00031168,5]
[391782034,1760805038332,-1224.64,0.00031174,2]
[391782035,1760805038341,-202.13623752,0.00031215,2]
[391782036,1760805038351,-156.88,0.00031215,15]
[391782037,1760805038360,-151.53,0.00031225,15]
[391782038,1760805038370,-494.44,0.00031233,2]
[391782039,1760805038379,-500.0,0.00031319,7]
[391782040,1760805038389,-151.53,0.00031325,15]
[391782041,1760805038398,-823.0,0.00031381,2]
[391782042,1760805038407,-151.53,0.00031425,15]
[391782043,1760805038416,-151.54633695,0.00031525,15]
[391782044,1760805038426,-281.76,0.000316,7]
[391782045,1760805038437,-450.0,0.00031716,5]
[391782046,1760805038447,-33067.23630857,0.000319,2]
[391782047,1760805038456,-200.0,0.000322,120]
[391782048,1760805038466,-18354.21,0.000322,7]
[391782049,1760805038475,-304.84595855,0.00032264,5]
[391782050,1760805038484,-200.0,0.00032526,120]
[391782051,1760805038493,-202.13623752,0.00032539,2]
[391782052,1760805038502,-155.675625,0.00032576,2]
[391782053,1760805038512,-556.00253848,0.00032785,2]
[391782054,1760805038522,-154.0,0.000328,120]
[391782055,1760805038532,-183.24329098,0.00032877,2]
[391782056,1760805038542,-982.0,0.00032958,2]
[391782057,1760805038551,-631.0,0.00032958,2]
[391782058,1760805038561,-2162.0,0.00032958,2]
[391782059,1760805038571,-411.0,0.00032958,2]
[391782060,1760805038581,-1007.94672532,0.00033,2]
[391782061,1760805038590,-565.08,0.0003307,2]
[391782062,1760805038599,-166.94723962,0.000332,117]
[391782063,1760805038609,-1000.0,0.0003323,30]
[391782064,1760805038618,-168.0,0.00033234,2]
[391782065,1760805038628,-335.10711861,0.00033261,7]
[391782066,1760805038637,-168.0,0.00033311,2]
[391782067,1760805038647,-168.0,0.00033412,2]
[391782068,1760805038656,-168.0,0.00033443,2]
[391782069,1760805038666,-168.0,0.00033473,2]
[391782070,1760805038675,-1252.09,0.000335,2]
[391782071,1760805038686,-500.0,0.00033635,120]
[391782072,1760805038697,-563.48,0.0003367,10]
[391782073,1760805038706,-202.13623752,0.00033863,2]
[391782074,1760805038716,-225.31732,0.000339,120]
[391782075,1760805038725,-387.79891682,0.00033962,7]
[391782076,1760805038735,-211.9019738,0.00033962,7]
[391782077,1760805038744,-191.83,0.00033962,120]
[391782078,1760805038753,-191.83,0.00033962,120]
[391782079,1760805038763,-3909.73,0.00033962,120]
[391782080,1760805038772,-183257.292432,0.00033963,7]
[391782081,1760805038782,-234583.33670376,0.00033963,20]
[391782082,1760805038792,-475.6701749,0.00033963,30]
[391782083,1760805038802,-1415.44025984,0.00033963,7]
[391782084,1760805038812,-83815.07354198,0.00033963,2]
[391782085,1760805038821,-1305.70136534,0.00033963,7]
[391782086,1760805038831,-22703.60989424,0.00033963,2]
[391782087,1760805038840,-51811.5376527,0.00033963,2]
[391782088,1760805038849,-621.56405397,0.00033963,2]
[391782089,1760805038859,-2494.76650696,0.00033963,7]
[391782090,1760805038868,-164.25622358,0.00033963,30]
[391782091,1760805038878,-248.44265289,0.00033963,30]
[391782092,1760805038888,-680.84933739,0.00033963,30]
[391782093,1760805038898,-3142.69999967,0.00033963,7]
[391782094,1760805038908,-1500.0,0.00033963,3]
[391782095,1760805038918,-736.87412277,0.00033963,30]
[391782096,1760805038929,-1197.72320147,0.00033963,2]
[391782097,1760805038939,-518.06643398,0.00033963,30]
[391782098,1760805038950,-908.61590984,0.00033963,30]
[391782099,1760805038959,-338.56650527,0.00033963,5]
[391782100,1760805038969,-1001.03051981,0.00033963,5]
[391782101,1760805038979,-1163.37570261,0.00033963,15]
[391782102,1760805038988,-58500.0,0.00033963,2]
[391782103,1760805038998,-1998.499999,0.00033963,2]
[391782104,1760805039008,-500.0,0.00033973,5]
[391782105,1760805039018,-4631.58,0.00034,14]
[391782106,1760805039027,-160.0,0.00034,30]
[391782107,1760805039038,-1152.0,0.00034008,2]
[391782108,1760805039047,-200.0,0.00034018,120]
[391782109,1760805039057,-200.0,0.00034148,120]
[391782110,1760805039067,-200.0,0.00034285,120]
[391782111,1760805039076,-168.0,0.00034508,2]
[391782112,1760805039086,-168.0,0.00034517,2]
[391782113,1760805039095,-501.62621845,0.00034521,5]
[391782114,1760805039105,-168.0,0.00034666,2]
[391782115,1760805039115,-18354.21,0.000347,14]
[391782116,1760805039125,-160.0,0.00034746,3]
[391782117,1760805039136,-701.61667933,0.00034849,120]
[391782118,1760805039145,-500.0,0.0003485,7]
[391782119,1760805039155,-500.0,0.00034871,7]
[391782120,1760805039165,-635.71,0.00034907,2]
[391782121,1760805039176,-3909.73,0.00034921,120]
[391782122,1760805039187,-502.55573725,0.00034937,7]
[391782123,1760805039197,-170.51771704,0.00034999,120]
[391782124,1760805039208,-10673.66606535,0.00035,2]
[391782125,1760805039223,-655.32440928,0.00035,2]
[391782126,1760805039233,-572.13421571,0.00035,120]
[391782127,1760805039243,-620.60134166,0.00035,120]
[391782128,1760805039255,-421.36619875,0.00035,60]
[391782129,1760805039265,-1000.0,0.00035018,4]
[391782130,1760805039274,-1080.952947,0.0003516,120]
[391782131,1760805039285,-500.0,0.00035228,30]
[391782132,1760805039294,-556.00253848,0.00035425,2]
[391782133,1760805039306,-3909.73,0.0003588,120]
[391782134,1760805039316,-500.0,0.00035945,30]
[391782135,1760805039327,-631.0,0.00035958,2]
[391782136,1760805039337,-2162.0,0.00035958,2]
[391782137,1760805039347,-411.0,0.00035958,2]
[391782138,1760805039356,-500.0,0.00036029,30]
[391782139,1760805039366,-1252.09,0.000361,2]
[391782140,1760805039375,-168.0,0.00036137,2]
[391782141,1760805039385,-203.27257829,0.0003621,2]
[391782142,1760805039394,-264.40070244,0.0003624,2]
[391782143,1760805039404,-155.675625,0.00036253,2]
[391782144,1760805039413,-500.0,0.00036261,30]
[391782145,1760805039423,-4631.58,0.000365,14]
[391782146,1760805039433,-1000.0,0.00036553,30]
[391782147,1760805039442,-244.0,0.00036553,30]
[391782148,1760805039452,-190.0,0.00036566,30]
[391782149,1760805039462,-6147.02177027,0.00036594,3]
[391782150,1760805039472,-437.45655618,0.00036594,3]
[391782151,1760805039482,-7133.40835316,0.00036604,2]
[391782152,1760805039493,-6147.02177027,0.00036694,3]
[391782153,1760805039503,-437.45655618,0.00036694,3]
[391782154,1760805039513,-281.74,0.000367,16]
[391782155,1760805039523,-1000.0,0.00036703,2]
[391782157,1760805039532,-793.50706892,0.00036703,2]
[391782159,1760805039543,-49176.1741622,0.00036704,3]
[391782161,1760805039552,-3499.65244944,0.00036704,3]
[391782163,1760805039562,-151.0,0.00036704,120]
[391782164,1760805039573,-151.0,0.00036704,120]
[391782165,1760805039583,-370000.0,0.00036714,2]
[391782166,1760805039593,-151.0,0.00036714,120]
[391782167,1760805039602,-151.0,0.00036714,120]
[391782168,1760805039611,-706.34,0.00036745,2]
[391782170,1760805039621,-160.0,0.00036767,4]
[391782171,1760805039631,-6147.02177027,0.0003679,3]
[391782173,1760805039641,-437.45655618,0.0003679,3]
[391782174,1760805039650,-3909.73,0.00036839,120]
[391782176,1760805039660,-1613.0,0.00036855,2]
[391782178,1760805039669,-394.17742458,0.00037,120]
[391782180,1760805039678,-18354.21,0.00037,14]
[391782181,1760805039686,-154.0,0.000373,120]
[391782183,1760805039696,-200.0,0.00037359,120]
[391782184,1760805039706,-200.0,0.00037359,120]
[391782185,1760805039715,-200.0,0.00037359,120]
[391782186,1760805039724,-13933.0,0.000375,2]
[391782187,1760805039734,-10000.0003835,0.000375,60]
[391782188,1760805039744,-402.78104431,0.00037662,120]
[391782189,1760805039754,-3909.73,0.00037798,120]
[391782190,1760805039763,-1014.05384326,0.000378,2]